bitfinex/quotes_BTCUSD_20220105
["timestamp","ask_amount","ask_price","bid_price","bid_amount"]
[1641370253394,0.37833658,46349.0,46348.0,0.053944]
[1641370254249,0.38133658,46349.0,46348.0,0.066944]
[1641370255648,0.37833658,46349.0,46348.0,0.053944]
[1641370256250,0.38133658,46349.0,46348.0,0.066944]
[1641370256850,0.053,46349.0,46348.0,0.066944]
[1641370257050,0.003,46349.0,46348.0,0.066944]
[1641370257453,0.30702251,46351.0,46348.0,0.053944]
[1641370257701,0.30702251,46351.0,46348.0,0.107887]
[1641370258300,0.32902251,46351.0,46348.0,0.117887]
[1641370259504,0.30702251,46351.0,46348.0,0.107887]
[1641370260104,0.25702251,46351.0,46348.0,0.107887]
[1641370260301,0.25702251,46351.0,46348.0,0.119887]
[1641370261344,0.25702251,46351.0,46348.0,0.114887]
[1641370261552,0.25702251,46351.0,46348.0,0.102887]
[1641370261748,0.22,46351.0,46348.0,0.102887]
[1641370261947,0.22,46351.0,46349.0,0.053934]
[1641370262147,0.22,46351.0,46349.0,0.107867]
[1641370262346,0.22,46351.0,46350.0,0.107865]
[1641370264048,0.27,46351.0,46350.0,0.107865]
[1641370264248,0.22,46351.0,46350.0,0.119865]
[1641370265504,0.22,46351.0,46350.0,0.36627738]
[1641370265709,0.22,46351.0,46350.0,1.01973984]
[1641370265907,0.22,46351.0,46350.0,2.36973984]
[1641370266102,0.22,46351.0,46350.0,2.73249509]
[1641370266303,0.00076492,46354.0,46351.0,1.3]
[1641370266504,0.00076492,46354.0,46352.0,0.0483]
[1641370266704,0.00076492,46354.0,46353.0,1.04514221]
[1641370266904,0.00076492,46354.0,46353.0,1.09344221]
[1641370267102,0.00076492,46354.0,46353.0,1.19344221]
[1641370268305,0.053926,46360.0,46353.0,1.20444221]
[1641370268505,0.527851,46366.0,46357.0,0.05392163]
[1641370268705,0.527851,46366.0,46358.0,0.29424213]
[1641370268955,0.053921,46365.0,46358.0,0.29424213]
[1641370269855,0.103921,46365.0,46361.0,0.053922]
[1641370270054,0.103921,46365.0,46361.0,0.102222]
[1641370271054,0.103921,46365.0,46361.0,0.156148]
[1641370271254,0.103921,46365.0,46362.0,0.053926]
[1641370272154,0.103921,46365.0,46362.0,0.059926]
[1641370272799,0.103921,46365.0,46362.0,0.006]
[1641370273301,0.323921,46365.0,46362.0,0.006]
[1641370273502,0.323921,46365.0,46361.0,0.053926]
[1641370273702,0.323921,46365.0,46360.0,0.053933]
[1641370274006,0.323921,46365.0,46355.0,0.97511894]
[1641370274007,0.053934,46362.0,46355.0,0.97511894]
[1641370274202,0.00119014,46364.0,46360.0,0.006]
[1641370274403,0.05,46362.0,46360.0,0.006]
[1641370274603,0.00119014,46364.0,46360.0,0.006]
[1641370274805,0.00119014,46364.0,46361.0,0.053929]
[1641370275006,0.00119014,46364.0,46361.0,0.107858]
[1641370275204,0.00119014,46364.0,46362.0,0.053973]
[1641370275706,0.053929,46363.0,46362.0,0.053973]
[1641370275905,0.103929,46363.0,46362.0,0.053973]
[1641370276355,0.103929,46363.0,46362.0,0.059973]
[1641370277656,0.103929,46363.0,46362.0,0.053973]
[1641370278062,0.3584075,46363.0,46362.0,0.053973]
[1641370278257,0.3584075,46363.0,46362.0,0.060973]
[1641370279259,0.35959766,46363.0,46362.0,0.060973]
[1641370279460,0.35959766,46363.0,46362.0,0.053973]
[1641370280203,0.35959766,46363.0,46362.0,0.060973]
[1641370281601,0.35959766,46363.0,46362.0,0.053973]
[1641370282200,0.35959766,46363.0,46362.0,0.060973]
[1641370283205,0.10511916,46363.0,46362.0,0.060973]
[1641370283602,0.10511916,46363.0,46362.0,0.053973]
[1641370284247,0.10511916,46363.0,46362.0,0.061973]
[1641370285551,0.10511916,46363.0,46362.0,0.053973]
[1641370286250,0.10511916,46363.0,46362.0,0.063973]
[1641370286652,0.05119016,46363.0,46362.0,0.712273]
[1641370286853,0.00119016,46363.0,46362.0,0.112273]
[1641370287452,0.00119016,46363.0,46362.0,0.102273]
[1641370288300,0.00119016,46363.0,46362.0,0.115273]
[1641370289498,0.00119016,46363.0,46362.0,0.102273]
[1641370290299,0.00119016,46363.0,46362.0,0.112273]
[1641370291449,0.00119016,46363.0,46362.0,0.102273]
[1641370292349,0.00119016,46363.0,46362.0,0.112273]
[1641370292949,0.00119016,46363.0,46362.0,0.063973]
[1641370293353,0.08911032,46363.0,46362.0,0.063973]
[1641370293554,1.93933106,46363.0,46362.0,0.053973]
[1641370293751,2.0075949,46363.0,46362.0,0.053973]
[1641370293951,2.0075949,46363.0,46352.0,0.97511894]
[1641370293952,1.3,46362.0,46352.0,0.97511894]
[1641370294151,1.3,46362.0,46348.0,0.97511894]
[1641370294152,0.00124664,46351.0,46348.0,0.97511894]
[1641370294450,0.53723837,46350.0,46348.0,0.97511894]
[1641370294849,0.77555522,46349.0,46348.0,0.97511894]
[1641370295095,0.34555522,46349.0,46345.0,0.053948]
[1641370295300,0.34555522,46349.0,46343.0,1.02906694]
[1641370295597,0.26593199,46348.0,46343.0,1.02906694]
[1641370295796,0.26593199,46348.0,46343.0,0.053948]
[1641370295797,0.31593199,46348.0,46343.0,0.053948]
[1641370296197,0.31893199,46348.0,46343.0,0.075948]
[1641370296398,0.053946,46346.0,46343.0,0.022]
[1641370296596,0.32359959,46345.0,46343.0,0.022]
[1641370296797,0.26709495,46344.0,46343.0,0.022]
[1641370297600,0.37500795,46344.0,46341.0,0.97511894]
[1641370297800,0.37500795,46344.0,46333.0,0.00121677]
[1641370297801,0.38868615,46343.0,46339.0,0.97511894]
[1641370298001,0.43868615,46343.0,46338.0,0.97511894]
[1641370298202,0.49196345,46335.0,46334.0,0.97511894]
[1641370298400,0.58401345,46335.0,46334.0,0.97511894]
[1641370298599,0.66026345,46335.0,46334.0,0.97511894]
[1641370298858,0.053963,46332.0,46330.0,0.053963]
[1641370300253,0.055963,46332.0,46330.0,0.077963]
[1641370301656,0.053963,46332.0,46330.0,0.053963]
[1641370302257,0.055963,46332.0,46330.0,0.083963]
[1641370303801,0.053963,46332.0,46330.0,0.053963]
[1641370304401,0.275963,46332.0,46330.0,0.082963]
[1641370305001,0.00119097,46331.0,46330.0,0.082963]
[1641370305403,0.00119097,46331.0,46330.0,0.712963]
[1641370305600,0.00119097,46331.0,46330.0,0.91898795]
[1641370305801,0.00119097,46331.0,46330.0,0.28898795]
[1641370306201,0.00119097,46331.0,46330.0,0.053963]
[1641370306451,0.00119097,46331.0,46330.0,0.081963]
[1641370306851,0.00119097,46331.0,46330.0,0.08203317]
[1641370307651,0.00119097,46331.0,46330.0,0.05403317]
[1641370308252,0.00119097,46331.0,46330.0,0.08103317]
[1641370309653,0.00119097,46331.0,46330.0,0.05403317]
[1641370310302,0.00119097,46331.0,46330.0,0.07503317]
[1641370310500,0.00119097,46331.0,46330.0,0.31046106]
[1641370310901,0.00119097,46331.0,46330.0,3.27929424]
[1641370311102,0.00119097,46331.0,46330.0,3.32759424]
[1641370311500,0.00119097,46331.0,46330.0,3.30659424]
[1641370311701,0.107907,46340.0,46331.0,1.03]
[1641370311903,0.107907,46340.0,46332.0,0.0483]
[1641370312101,0.157907,46340.0,46335.0,0.053953]
[1641370312303,0.053952,46339.0,46335.0,0.053953]
[1641370314249,0.053952,46339.0,46337.0,0.053952]
[1641370315450,0.053952,46339.0,46335.0,0.063953]
[1641370316249,0.062952,46339.0,46335.0,0.075953]
[1641370317250,0.062952,46339.0,46336.0,6.467e-05]
[1641370317702,0.103952,46339.0,46336.0,6.467e-05]
[1641370318303,0.103952,46339.0,46336.0,0.01006467]
[1641370318304,0.112952,46339.0,46336.0,0.01006467]
[1641370319708,0.103952,46339.0,46336.0,6.467e-05]
[1641370320110,0.40936653,46338.0,46336.0,6.467e-05]
[1641370320308,0.40936653,46338.0,46336.0,0.00506467]
[1641370320309,0.32599556,46337.0,46336.0,0.00506467]
[1641370320509,0.05,46337.0,46336.0,0.00506467]
[1641370320908,0.064952,46339.0,46336.0,0.00506467]
[1641370321655,0.053952,46339.0,46336.0,6.467e-05]
[1641370322451,0.063952,46339.0,46336.0,0.00906467]
[1641370323852,0.053952,46339.0,46336.0,6.467e-05]
[1641370324552,0.061952,46339.0,46337.0,0.053955]
[1641370325203,0.281952,46339.0,46337.0,0.053955]
[1641370326108,0.228,46339.0,46337.0,0.053955]
[1641370326509,0.228,46339.0,46337.0,0.156203]
[1641370326510,0.278,46339.0,46337.0,0.156203]
[1641370326709,0.27,46339.0,46337.0,0.193203]
[1641370326909,0.27,46339.0,46337.0,0.144903]
[1641370327607,0.27,46339.0,46337.0,0.107903]
[1641370328007,0.27,46339.0,46338.0,6.382e-05]
[1641370328408,0.311,46339.0,46338.0,6.382e-05]
[1641370329648,0.27,46339.0,46338.0,6.382e-05]
[1641370330448,0.28,46339.0,46338.0,0.01506382]
[1641370330848,0.28119078,46339.0,46338.0,0.01506382]
[1641370331648,0.27119078,46339.0,46338.0,6.382e-05]
[1641370332452,0.28119078,46339.0,46338.0,0.01206382]
[1641370333601,0.28119078,46339.0,46338.0,6.382e-05]
[1641370333803,0.27119078,46339.0,46338.0,6.382e-05]
[1641370334402,0.28119078,46339.0,46338.0,0.01206382]
[1641370335605,0.27119078,46339.0,46338.0,6.382e-05]
[1641370336356,0.28019078,46339.0,46338.0,0.012]
[1641370336558,0.28019078,46339.0,46337.0,0.05996682]
[1641370337760,0.27119078,46339.0,46337.0,0.05996682]
[1641370338361,0.28019078,46339.0,46337.0,0.07096682]
[1641370339662,0.27119078,46339.0,46337.0,0.05996682]
[1641370340108,0.27119078,46339.0,46338.0,0.107897]
[1641370340505,0.27519078,46339.0,46338.0,0.107897]
[1641370341705,0.27119078,46339.0,46338.0,0.107897]
[1641370342507,0.28019078,46339.0,46338.0,0.121897]
[1641370342908,0.28019078,46339.0,46338.0,0.0137]
[1641370343107,0.28019078,46339.0,46338.0,0.0087]
[1641370343307,0.28019078,46339.0,46338.0,0.0084]
[1641370343708,0.28019078,46339.0,46338.0,0.0081]
[1641370343951,0.28019078,46339.0,46338.0,0.0078]
[1641370344151,0.28019078,46339.0,46337.0,0.05995982]
[1641370344352,0.27119078,46339.0,46337.0,0.05965982]
[1641370344552,0.28119078,46339.0,46338.0,0.0137]
[1641370345053,0.28119078,46339.0,46338.0,0.0134]
[1641370345752,0.27119078,46339.0,46337.0,0.05965982]
[1641370346452,0.28119078,46339.0,46337.0,0.07365982]
[1641370347708,0.27119078,46339.0,46337.0,0.05465982]
[1641370348610,0.27919078,46339.0,46337.0,0.06665982]
[1641370349611,0.27119078,46339.0,46337.0,0.05465982]
[1641370350415,0.27519078,46339.0,46337.0,0.07365982]
[1641370351012,0.22519078,46339.0,46338.0,0.107901]
[1641370351654,0.22119078,46339.0,46338.0,0.107901]
[1641370352254,0.27119078,46339.0,46338.0,0.107901]
[1641370352454,0.28019078,46339.0,46338.0,0.122901]
[1641370353656,0.27119078,46339.0,46338.0,0.107901]
[1641370353857,0.27119078,46339.0,46337.0,0.10861382]
[1641370354456,0.27919078,46339.0,46337.0,0.12261382]
[1641370355708,0.27919078,46339.0,46337.0,0.10861382]
[1641370355902,0.27119078,46339.0,46337.0,0.10861382]
[1641370356505,0.28019078,46339.0,46337.0,0.12161382]
[1641370357607,0.31698859,46339.0,46337.0,0.12161382]
[1641370357808,0.30798859,46339.0,46337.0,0.10861382]
[1641370358412,0.31398859,46339.0,46337.0,0.12261382]
[1641370359753,0.30798859,46339.0,46337.0,0.10861382]
[1641370360555,0.31598859,46339.0,46337.0,0.12161382]
[1641370360955,0.27919078,46339.0,46337.0,0.12161382]
[1641370361655,0.27919078,46339.0,46337.0,0.10861382]
[1641370361955,0.27119078,46339.0,46337.0,0.10861382]
[1641370362455,0.28019078,46339.0,46337.0,0.12161382]
[1641370363705,0.27119078,46339.0,46337.0,0.10861382]
[1641370364401,0.27119078,46339.0,46337.0,0.12161382]
[1641370364602,0.28119078,46339.0,46337.0,0.12161382]
[1641370365805,0.27119078,46339.0,46337.0,0.10861382]
[1641370366456,0.27919078,46339.0,46337.0,0.12161382]
[1641370367757,0.27119078,46339.0,46337.0,0.10861382]
[1641370368557,0.27919078,46339.0,46337.0,0.12161382]
[1641370369959,0.27919078,46339.0,46337.0,0.00071182]
[1641370369960,0.26763802,46338.0,46337.0,0.00071182]
[1641370370410,0.26763802,46338.0,46337.0,0.013]
[1641370370411,0.32563802,46338.0,46337.0,0.013]
[1641370370811,0.44,46337.0,46331.0,0.107922]
[1641370371016,0.09908733,46336.0,46331.0,0.107922]
[1641370371213,0.60450893,46335.0,46334.0,0.053962]
[1641370371413,0.60450893,46335.0,46331.0,0.107922]
[1641370371414,0.04910607,46334.0,46332.0,0.053963]
[1641370371612,0.5604005,46335.0,46332.0,0.053963]
[1641370371613,0.2876197,46333.0,46332.0,0.053963]
[1641370371812,0.24783746,46333.0,46332.0,0.053963]
[1641370372013,0.29783746,46333.0,46332.0,0.053963]
[1641370372214,0.05,46333.0,46332.0,0.053963]
[1641370372415,0.007,46333.0,46332.0,0.067963]
[1641370373857,0.103964,46334.0,46332.0,0.053963]
[1641370374557,0.112964,46334.0,46332.0,0.063963]
[1641370375660,0.103964,46334.0,46332.0,0.053963]
[1641370376462,0.113964,46334.0,46332.0,0.069963]
[1641370377363,0.00119092,46333.0,46332.0,0.069963]
[1641370377805,0.00119092,46333.0,46332.0,0.053963]
[1641370378503,0.00119092,46333.0,46332.0,0.077963]
[1641370378504,0.01119092,46333.0,46332.0,0.077963]
[1641370378703,0.01119092,46333.0,46332.0,0.497963]
[1641370378907,0.01119092,46333.0,46332.0,0.077963]
[1641370379903,0.00119092,46333.0,46332.0,0.053963]
[1641370380503,0.01019092,46333.0,46332.0,0.082963]
[1641370381755,0.00119092,46333.0,46332.0,0.053963]
[1641370382155,0.00119092,46333.0,46332.0,0.05402568]
[1641370382554,0.00119092,46333.0,46332.0,0.06902568]
[1641370382555,0.00819092,46333.0,46332.0,0.06902568]
[1641370383657,0.00119092,46333.0,46332.0,0.05402568]
[1641370384062,0.00119092,46333.0,46330.0,0.97552092]
[1641370384457,0.06315392,46333.0,46332.0,0.015]
[1641370384856,0.00919092,46333.0,46332.0,0.015]
[1641370385141,0.00919092,46333.0,46332.0,0.068963]
[1641370385338,0.06315392,46333.0,46330.0,0.107927]
[1641370385739,0.05515392,46333.0,46330.0,0.107927]
[1641370386139,0.05515392,46333.0,46332.0,0.053963]
[1641370386540,0.06415392,46333.0,46332.0,0.053963]
[1641370388039,0.01019092,46333.0,46332.0,0.053963]
[1641370388440,0.01819092,46333.0,46332.0,0.065963]
[1641370388853,0.01819092,46333.0,46332.0,0.012]
[1641370389356,0.42063238,46333.0,46332.0,0.012]
[1641370389754,0.40363238,46333.0,46331.0,0.053956]
[1641370389955,0.64818102,46333.0,46331.0,0.053956]
[1641370390157,0.23978991,46332.0,46331.0,0.053956]
[1641370390354,0.23978991,46332.0,46330.0,0.053965]
[1641370390355,0.28978991,46332.0,46330.0,0.10793]
[1641370390556,0.25368253,46331.0,46330.0,0.10793]
[1641370390761,0.25368253,46331.0,46324.0,0.72871901]
[1641370390762,1.07,46330.0,46324.0,0.72871901]
[1641370390960,1.35569358,46330.0,46324.0,0.72871901]
[1641370391158,0.05397373,46328.0,46324.0,0.72871901]
[1641370391357,0.05397373,46328.0,46323.0,0.42]
[1641370391358,0.2950028,46327.0,46323.0,0.42]
[1641370391557,0.3450028,46327.0,46323.0,0.42]
[1641370391861,0.04543813,46326.0,46323.0,0.42]
[1641370392057,0.04459954,46319.0,46317.0,0.4131]
[1641370392257,0.09459954,46319.0,46317.0,0.4131]
[1641370392459,0.04020557,46318.0,46317.0,0.4131]
[1641370393021,0.103977,46321.0,46317.0,0.467077]
[1641370393820,0.053977,46319.0,46317.0,0.467077]
[1641370394120,0.053977,46319.0,46315.0,0.00022]
[1641370394121,0.05518752,46319.0,46315.0,0.00022]
[1641370394319,0.16315252,46319.0,46315.0,0.00022]
[1641370394626,0.05,46318.0,46317.0,0.008]
[1641370395922,0.103983,46318.0,46317.0,0.053979]
[1641370396124,0.103983,46318.0,46317.0,0.107958]
[1641370396559,0.117983,46318.0,46317.0,0.113958]
[1641370397956,0.103983,46318.0,46317.0,0.107958]
[1641370398555,0.112983,46318.0,46317.0,0.117958]
[1641370399456,0.062983,46318.0,46317.0,0.117958]
[1641370399858,0.053983,46318.0,46317.0,1.08297767]
[1641370400504,0.113983,46318.0,46317.0,1.09297767]
[1641370401903,0.103983,46318.0,46317.0,1.08297767]
[1641370402703,0.103983,46318.0,46317.0,1.09497767]
[1641370403303,0.10538264,46318.0,46317.0,1.09497767]
[1641370403704,0.10538264,46318.0,46317.0,0.107958]
[1641370404565,0.11638264,46318.0,46317.0,0.116958]
[1641370405864,0.10538264,46318.0,46317.0,0.107958]
[1641370406665,0.11638264,46318.0,46317.0,0.114958]
[1641370407805,0.10538264,46318.0,46317.0,0.3469454]
[1641370408305,0.10538264,46318.0,46317.0,0.34701509]
[1641370408505,0.09838264,46318.0,46317.0,0.35701509]
[1641370408904,0.09838264,46318.0,46317.0,0.11802769]
[1641370409105,0.09838264,46318.0,46317.0,0.36003096]
[1641370410009,0.05,46318.0,46317.0,0.35003096]
[1641370410607,0.05,46318.0,46317.0,0.36103096]
[1641370410806,0.103983,46318.0,46317.0,0.36103096]
[1641370411558,0.103983,46318.0,46317.0,0.11902769]
[1641370411758,0.103983,46318.0,46317.0,0.10802769]
[1641370412763,0.139983,46318.0,46317.0,0.11702769]
[1641370413963,0.103983,46318.0,46317.0,0.10802769]
[1641370414663,0.135983,46318.0,46317.0,0.11802769]
[1641370416612,0.169983,46318.0,46317.0,0.12702769]
[1641370417812,0.103983,46318.0,46317.0,0.10802769]
[1641370418613,0.113983,46318.0,46317.0,0.11702769]
[1641370419756,0.113983,46318.0,46317.0,0.10802769]
[1641370419757,0.103983,46318.0,46317.0,0.10802769]
[1641370420758,0.113983,46318.0,46317.0,0.11802769]
[1641370421758,0.103983,46318.0,46317.0,0.10802769]
[1641370422615,0.113983,46318.0,46317.0,0.11702769]
[1641370423916,0.103983,46318.0,46317.0,0.10802769]
[1641370424516,0.103983,46318.0,46317.0,0.12002769]
[1641370426016,0.103983,46318.0,46317.0,0.10802769]
[1641370426662,0.103983,46318.0,46317.0,0.12002769]
[1641370427964,0.103983,46318.0,46317.0,0.10802769]
[1641370428663,0.111983,46318.0,46317.0,0.12002769]
[1641370429064,0.11317431,46318.0,46317.0,0.12002769]
[1641370429964,0.10517431,46318.0,46317.0,1.08304736]
[1641370430606,0.11017431,46318.0,46317.0,1.09504736]
[1641370431007,0.11017431,46318.0,46317.0,0.12002769]
[1641370431809,0.10517431,46318.0,46317.0,0.10802769]
[1641370432610,0.09479431,46318.0,46317.0,0.12102769]
[1641370433611,0.09479431,46318.0,46317.0,0.06704869]
[1641370433858,0.09479431,46318.0,46317.0,0.05404869]
[1641370434060,0.33810482,46318.0,46317.0,1.03003334]
[1641370434259,0.33809285,46318.0,46317.0,1.03003334]
[1641370434460,0.09479431,46318.0,46317.0,1.03003334]
[1641370434662,0.09479431,46318.0,46317.0,0.06604869]
[1641370435760,0.09479431,46318.0,46317.0,0.05404869]
[1641370436561,0.09479431,46318.0,46317.0,0.06604869]
[1641370437810,0.09479431,46318.0,46317.0,0.05404869]
[1641370438516,0.09479431,46318.0,46317.0,0.06204869]
[1641370438712,0.10879431,46318.0,46317.0,0.06204869]
[1641370439914,0.09479431,46318.0,46317.0,0.05404869]
[1641370440516,0.10979431,46318.0,46317.0,0.06404869]
[1641370441859,0.09479431,46318.0,46317.0,0.05404869]
[1641370442660,0.11079431,46318.0,46317.0,0.06204869]
[1641370443864,0.09479431,46318.0,46317.0,0.05404869]
[1641370444564,0.10679431,46318.0,46317.0,0.06204869]
[1641370444866,0.06717431,46318.0,46317.0,0.06204869]
[1641370445109,0.06717431,46318.0,46317.0,0.31048215]
[1641370445711,0.06717431,46318.0,46317.0,0.41048215]
[1641370445914,0.05517431,46318.0,46317.0,1.3784668]
[1641370446510,0.05517431,46318.0,46317.0,1.13003334]
[1641370446710,0.06217431,46318.0,46317.0,1.14203334]
[1641370447111,0.11217431,46318.0,46317.0,1.14203334]
[1641370447910,0.10517431,46318.0,46317.0,0.05404869]
[1641370448112,0.10517431,46318.0,46317.0,1.03003334]
[1641370448512,0.10517431,46318.0,46317.0,0.05404869]
[1641370448710,0.11217431,46318.0,46317.0,0.06404869]
[1641370449363,0.37051532,46318.0,46317.0,0.06404869]
[1641370449563,0.11217431,46318.0,46317.0,0.06404869]
[1641370449963,0.35725457,46318.0,46317.0,0.05404869]
[1641370450563,0.37825457,46318.0,46317.0,0.06004869]
[1641370451864,0.37825457,46318.0,46317.0,0.05404869]
[1641370452064,0.35725457,46318.0,46317.0,0.05404869]
[1641370452608,0.07517431,46318.0,46317.0,0.05904869]
[1641370453307,0.07517431,46318.0,46317.0,1.03503334]
[1641370453707,0.07517431,46318.0,46317.0,1.13503334]
[1641370454010,0.10517431,46318.0,46317.0,1.03003334]
[1641370454407,0.10517431,46318.0,46317.0,0.05404869]
[1641370454607,0.11417431,46318.0,46317.0,0.06404869]
[1641370456008,0.10517431,46318.0,46317.0,0.05404869]
[1641370456667,0.11517431,46318.0,46317.0,0.06304869]
[1641370457967,0.10517431,46318.0,46317.0,0.05404869]
[1641370458666,0.11617431,46318.0,46317.0,0.06204869]
[1641370459867,0.10517431,46318.0,46317.0,0.05404869]
[1641370460709,0.10517431,46318.0,46317.0,0.06204869]
[1641370460710,0.11717431,46318.0,46317.0,0.06204869]
[1641370462012,0.10517431,46318.0,46317.0,0.05404869]
[1641370462613,0.34858012,46318.0,46317.0,0.06204869]
[1641370462814,0.10566981,46318.0,46317.0,0.06204869]
[1641370464863,0.10766981,46318.0,46317.0,0.05904869]
[1641370466262,0.09366981,46318.0,46317.0,0.05404869]
[1641370466662,0.10766981,46318.0,46317.0,0.05904869]
[1641370467912,0.09366981,46318.0,46317.0,0.05404869]
[1641370468518,0.07196981,46318.0,46317.0,0.05404869]
[1641370468715,0.08396981,46318.0,46317.0,0.06104869]
[1641370469613,0.08396981,46318.0,46317.0,0.00706969]
[1641370469813,0.08396981,46318.0,46317.0,6.969e-05]
[1641370470015,0.07196981,46318.0,46317.0,6.969e-05]
[1641370470516,0.31402183,46318.0,46317.0,6.969e-05]
[1641370470716,0.32702183,46318.0,46317.0,0.00506969]
[1641370471017,0.33061038,46318.0,46317.0,0.00506969]
[1641370471686,0.32969469,46318.0,46317.0,0.00506969]
[1641370471990,0.31669469,46318.0,46317.0,6.969e-05]
[1641370472185,0.3127964,46318.0,46317.0,6.969e-05]
[1641370472387,0.07196981,46318.0,46317.0,6.969e-05]
[1641370472587,0.07196981,46318.0,46317.0,0.00506969]
[1641370472788,0.08396981,46318.0,46317.0,0.00506969]
[1641370473688,0.32748983,46318.0,46317.0,0.00506969]
[1641370473889,0.07196981,46318.0,46317.0,6.969e-05]
[1641370474792,0.08196981,46318.0,46317.0,0.00806969]
[1641370476116,0.07196981,46318.0,46317.0,6.969e-05]
[1641370476712,0.08296981,46318.0,46317.0,0.00806969]
[1641370477414,0.32417319,46318.0,46317.0,0.00806969]
[1641370477615,0.08296981,46318.0,46317.0,0.00806969]
[1641370478014,0.07196981,46318.0,46317.0,6.969e-05]
[1641370478616,0.08296981,46318.0,46317.0,0.00806969]
[1641370479870,0.08296981,46318.0,46317.0,6.969e-05]
[1641370480068,0.07196981,46318.0,46317.0,6.969e-05]
[1641370480767,0.08296981,46318.0,46317.0,0.00806969]
[1641370482069,0.07196981,46318.0,46317.0,6.969e-05]
[1641370482712,0.08196981,46318.0,46317.0,0.00806969]
[1641370483912,0.08196981,46318.0,46317.0,6.969e-05]
[1641370484212,0.07196981,46318.0,46317.0,6.969e-05]
[1641370484814,0.07196981,46318.0,46317.0,0.01206969]
[1641370486014,0.07196981,46318.0,46317.0,6.969e-05]
[1641370486659,0.07196981,46318.0,46317.0,0.01106969]
[1641370487859,0.07196981,46318.0,46317.0,6.969e-05]
[1641370488760,0.07196981,46318.0,46317.0,0.01206969]
[1641370489862,0.07196981,46318.0,46317.0,6.969e-05]
[1641370490814,0.02196981,46318.0,46317.0,0.27804116]
[1641370491017,0.07196981,46318.0,46317.0,0.27804116]
[1641370492020,0.07196981,46318.0,46317.0,6.969e-05]
[1641370492219,0.02196981,46318.0,46317.0,6.969e-05]
[1641370492417,0.07196981,46318.0,46317.0,6.969e-05]
[1641370492820,0.02196981,46318.0,46317.0,0.01306969]
[1641370493017,0.07196981,46318.0,46317.0,0.01306969]
[1641370493420,0.02196981,46318.0,46317.0,0.01306969]
[1641370493619,0.07196981,46318.0,46317.0,0.01306969]
[1641370494065,0.07196981,46318.0,46317.0,6.969e-05]
[1641370494667,0.07196981,46318.0,46317.0,0.01306969]
[1641370496066,0.07196981,46318.0,46317.0,6.969e-05]
[1641370496667,0.09096981,46318.0,46317.0,0.00806969]
[1641370497917,0.09096981,46318.0,46317.0,6.969e-05]
[1641370498119,0.07196981,46318.0,46317.0,6.969e-05]
[1641370498717,0.07196981,46318.0,46317.0,0.00806969]
[1641370498718,0.11396981,46318.0,46317.0,0.00806969]
[1641370500020,0.07196981,46318.0,46317.0,6.969e-05]
[1641370500823,0.11396981,46318.0,46317.0,0.00806969]
[1641370501963,0.11396981,46318.0,46317.0,0.24193607]
[1641370502171,0.07196981,46318.0,46317.0,0.24193607]
[1641370502363,0.00119131,46318.0,46317.0,1.10193607]
[1641370502563,0.00119131,46318.0,46317.0,0.49986807]
[1641370502864,0.02019131,46318.0,46317.0,0.50886807]
[1641370503463,0.02019131,46318.0,46317.0,0.45886807]
[1641370503665,0.02019131,46318.0,46317.0,0.11700169]
[1641370504063,0.00119131,46318.0,46317.0,0.10800169]
[1641370504863,0.00119131,46318.0,46317.0,0.11800169]
[1641370506813,0.04419131,46318.0,46317.0,0.11700169]
[1641370508016,0.00119131,46318.0,46317.0,0.09800169]
[1641370508217,0.00119131,46318.0,46317.0,0.09806504]
[1641370508717,0.04119131,46318.0,46317.0,0.10506504]
[1641370509163,0.04119131,46318.0,46317.0,0.84506504]
[1641370509366,0.041891,46318.0,46317.0,0.09506504]
[1641370509764,0.05054918,46318.0,46317.0,0.09506504]
[1641370509964,0.01054918,46318.0,46317.0,0.08806504]
[1641370510865,0.03254918,46318.0,46317.0,0.09606504]
[1641370512065,0.01054918,46318.0,46317.0,0.08806504]
[1641370512266,0.01054918,46318.0,46317.0,0.07806504]
[1641370512718,0.01054918,46318.0,46317.0,0.08406504]
[1641370512915,0.05154918,46318.0,46317.0,0.08406504]
[1641370514118,0.01054918,46318.0,46317.0,0.07806504]
[1641370514718,0.04654918,46318.0,46317.0,0.08706504]
[1641370516117,0.01054918,46318.0,46317.0,0.65806504]
[1641370516371,0.01054918,46318.0,46317.0,0.90263467]
[1641370516767,0.04554918,46318.0,46317.0,0.91263467]
[1641370517069,0.04554918,46318.0,46317.0,5.08071206]
[1641370517269,0.04554918,46318.0,46317.0,5.0819552]
[1641370517470,0.04554918,46318.0,46317.0,6.05721423]
[1641370518068,0.01054918,46318.0,46317.0,5.0719552]
[1641370518874,0.01054918,46318.0,46317.0,5.0839552]
[1641370520113,0.01054918,46318.0,46317.0,5.0719552]
[1641370520917,0.01054918,46318.0,46317.0,5.0879552]
[1641370522016,0.01054918,46318.0,46317.0,5.0719552]
[1641370523017,0.01054918,46318.0,46317.0,5.0879552]
[1641370524168,0.01054918,46318.0,46317.0,5.0719552]
[1641370524769,0.01054918,46318.0,46317.0,5.0879552]
[1641370526169,0.01054918,46318.0,46317.0,1.82217781]
[1641370526872,0.01054918,46318.0,46317.0,1.83317781]
[1641370529524,0.01054918,46318.0,46317.0,1.11317781]
[1641370529921,0.01054918,46318.0,46317.0,1.62317781]
[1641370530120,0.01054918,46318.0,46317.0,1.61217781]
[1641370530621,0.01054918,46318.0,46317.0,1.10217781]
[1641370530824,0.01054918,46318.0,46317.0,1.11317781]
[1641370531022,0.01054918,46318.0,46317.0,1.57317781]
[1641370531222,0.01054918,46318.0,46317.0,1.11317781]
[1641370532172,0.01054918,46318.0,46317.0,1.10217781]
[1641370532868,0.01054918,46318.0,46317.0,1.11317781]
[1641370533670,0.01054918,46318.0,46317.0,2.25617781]
[1641370534073,0.01054918,46318.0,46317.0,2.24517781]
[1641370534271,0.01054918,46318.0,46317.0,1.10217781]
[1641370534774,0.01054918,46318.0,46317.0,1.11617781]
[1641370535216,0.01054918,46318.0,46317.0,2.09139673]
[1641370536018,0.00819142,46318.0,46317.0,2.07739673]
[1641370536219,0.00432909,46318.0,46317.0,1.49739673]
[1641370536421,0.00819142,46318.0,46317.0,1.49739673]
[1641370536819,0.00819142,46318.0,46317.0,1.50939673]
[1641370537218,0.00819142,46318.0,46317.0,0.53417781]
[1641370538123,0.00819142,46318.0,46317.0,0.22760818]
[1641370538323,0.00819142,46318.0,46317.0,0.27636504]
[1641370538519,0.00819142,46318.0,46317.0,0.17636504]
[1641370538968,0.00819142,46318.0,46317.0,0.18736504]
[1641370539767,0.00819142,46318.0,46317.0,0.13736504]
[1641370539972,0.00819142,46318.0,46317.0,0.17736504]
[1641370540169,0.00819142,46318.0,46317.0,0.16636504]